bitfinex-derivatives/quotes_SOLF0:USTF0_20250819
["timestamp","ask_amount","ask_price","bid_price","bid_amount"]
[1755619300190,0.97813255,178.01,177.84,142.76]
[1755619300191,3.93482973,177.98,177.84,142.76]
[1755619300495,3.13,177.95,177.8,149.38588001]
[1755619300892,3.13,177.95,177.81,5.6234]
[1755619301696,3.93571699,177.94,177.8,149.38588001]
[1755619301993,3.13,177.92,177.8,149.38588001]
[1755619302796,3.13,177.92,177.8,155.00948001]
[1755619303091,3.13,177.92,177.8,149.38588001]
[1755619304390,3.13,177.91,177.8,149.38588001]
[1755619305397,3.13,177.91,177.8,155.00958001]
[1755619305597,3.13,177.91,177.8,149.38588001]
[1755619305895,3.13,177.91,177.8,155.00958001]
[1755619307600,3.13,177.91,177.81,0.26]
[1755619308302,3.13,177.91,177.83,5.6227]
[1755619309200,3.13,177.91,177.84,5.6224]
[1755619309399,3.13,177.91,177.85,0.26]
[1755619309599,3.13,177.91,177.8,149.38588001]
[1755619309900,3.13,177.91,177.8,149.64588001]
[1755619310100,3.13,177.91,177.8,0.26]
[1755619310299,3.13,177.91,177.83,0.26]
[1755619310796,7.51155793,177.97,177.83,0.26]
[1755619310996,7.07447602,177.96,177.83,0.26]
[1755619311196,3.94447602,177.95,177.83,0.26]
[1755619311500,3.94447602,177.94,177.86,5.8817]
[1755619311691,3.13,177.96,177.86,0.26]
[1755619311894,3.94649544,177.95,177.87,5.6215]
[1755619312197,3.94649544,177.94,177.86,0.26]
[1755619312401,3.13,177.96,177.86,5.8817]
[1755619312699,3.9488016,177.95,177.86,0.26]
[1755619312901,3.13,177.96,177.87,5.6214]
[1755619313091,3.94883833,177.95,177.86,0.26]
[1755619313396,3.13,177.96,177.86,0.26]
[1755619313592,3.95136484,177.95,177.87,5.6215]
[1755619313796,3.13,177.96,177.87,5.6215]
[1755619314000,3.94925837,177.95,177.86,5.8818]
[1755619314201,3.13,177.96,177.86,0.26]
[1755619314399,3.95066387,177.95,177.86,0.26]
[1755619314700,3.95066387,177.94,177.86,0.26]
[1755619314902,3.13,177.96,177.86,0.26]
[1755619315202,3.95064727,177.95,177.86,7.51155793]
[1755619315400,385.03154866,178.01,177.86,7.51155793]
[1755619315401,378.75813255,178.01,177.86,7.51155793]
[1755619315600,3.13,177.99,177.9,0.26]
[1755619315896,3.95196106,177.98,177.9,0.26]
[1755619316601,3.95196106,177.98,177.9,5.8804]
[1755619316798,3.95196106,177.98,177.9,0.26]
[1755619317001,3.13,177.99,177.9,0.26]
[1755619317502,3.13,177.99,177.91,5.6201]
[1755619317902,3.13,177.99,177.9,0.26]
[1755619318104,3.94799694,177.98,177.9,0.26]
[1755619318302,3.13,177.99,177.9,0.26]
[1755619318507,3.94742302,177.98,177.9,0.26]
[1755619318695,3.13,177.99,177.9,0.26]
[1755619319202,3.13,177.99,177.91,5.6202]
[1755619319401,3.13,177.99,177.9,0.26]
[1755619319605,3.13,177.99,177.92,5.6199]
[1755619320404,0.97813255,178.01,177.93,5.8795]
[1755619321103,0.97813255,178.01,177.93,0.26]
[1755619321300,3.13,178.03,177.93,0.26]
[1755619321900,3.13,178.03,177.94,7.51155793]
[1755619322213,3.13,178.08,177.95,0.26]
[1755619322398,0.97780275,178.08,177.95,0.26]
[1755619322705,3.13,178.07,177.95,0.26]
[1755619323104,3.13,178.07,178.01,5.6171]
[1755619323311,377.8,178.11,178.01,5.6171]
[1755619323312,3.13,178.11,178.01,0.26]
[1755619323713,145.53,178.15,178.06,5.6154]
[1755619324000,4.10744572,178.15,178.05,0.26]
[1755619324800,0.03683568,178.12,178.05,5.8758]
[1755619325001,0.03683568,178.12,178.05,0.26]
[1755619325511,0.03683568,178.12,178.05,5.8759]
[1755619326307,0.03683568,178.12,178.06,5.6155]
[1755619326909,0.03683568,178.12,178.05,0.26]
[1755619327513,0.03683568,178.12,178.05,5.8759]
[1755619327707,0.03683568,178.12,178.05,0.26]
[1755619328019,0.03683568,178.12,178.06,5.6154]
[1755619328202,0.03683568,178.12,178.05,0.26]
[1755619328407,0.03683568,178.12,178.05,5.8757]
[1755619328609,0.03683568,178.12,178.05,0.26]
[1755619329012,3.04,178.11,178.02,149.87998746]
[1755619329207,3.04,178.11,178.02,142.36842953]
[1755619330013,3.04,178.14,178.07,5.6152]
[1755619330206,3.04,178.14,178.07,0.26]
[1755619330619,3.04,178.14,178.03,0.26]
[1755619330817,0.04104172,178.12,178.03,0.26]
[1755619331116,0.04104172,178.12,178.06,5.6154]
[1755619331615,0.04104172,178.12,178.06,5.8754]
[1755619331916,0.04104172,178.12,178.06,7.51155793]
[1755619332116,0.04104172,178.12,178.09,0.26]
[1755619332504,0.04104172,178.12,178.1,0.26]
[1755619333217,0.04104172,178.12,178.06,7.77155793]
[1755619333511,0.04104172,178.12,178.06,0.26]
[1755619333713,3.08104172,178.12,178.02,155.75678746]
[1755619333904,3.08104172,178.12,178.02,142.62842953]
[1755619335513,3.08104172,178.12,178.03,5.6165]
[1755619335709,3.08104172,178.12,178.02,142.62842953]
[1755619336812,3.08104172,178.12,178.04,0.26]
[1755619337115,0.04104172,178.12,178.04,0.26]
[1755619337510,3.08104172,178.12,178.04,5.8761]
[1755619337707,3.08104172,178.12,178.0,142.28]
[1755619337708,3.08104172,178.12,178.0,142.52]
[1755619338117,3.04,178.12,178.0,142.52]
[1755619338507,3.04,178.12,178.0,148.1375]
[1755619339016,3.04,178.12,178.0,142.52]
[1755619339616,3.04,178.12,178.02,5.6168]
[1755619340113,3.04,178.12,178.0,142.52]
[1755619340617,3.04,178.12,178.0,142.26]
[1755619340917,3.04,178.12,178.01,0.26]
[1755619341112,3.04,178.12,178.0,149.77155793]
[1755619341322,3.04,178.12,178.03,0.26]
[1755619343019,3.04,178.12,178.03,5.8765]
[1755619343519,3.04,178.12,178.04,5.6162]
[1755619345118,3.04,178.12,178.03,5.8765]
[1755619345620,3.04,178.16,178.05,0.25]
[1755619347128,3.04,178.14,177.98,0.25]
[1755619347519,3.04,178.14,177.96,0.25]
[1755619347918,3.04,178.14,178.01,5.6171]
[1755619348124,3.04,178.14,178.01,5.8671]
[1755619348316,3.04,178.14,178.01,0.25]
[1755619349628,3.04,178.14,178.03,5.6164]
[1755619350030,3.04,178.14,178.01,0.25]
[1755619350031,3.04,178.14,178.06,5.6156]
[1755619350424,3.04,178.14,178.06,10.4296245]
[1755619351423,3.04,178.14,178.05,0.25]
[1755619352029,3.04,178.14,178.06,5.6154]
[1755619352224,3.04,178.14,178.05,0.25]
[1755619352521,3.04,178.14,178.01,5.0640245]
[1755619352727,3.04,178.14,178.03,5.6166]
[1755619352927,3.04,178.14,178.01,5.0640245]
[1755619353127,0.04030326,178.1,178.01,5.0640245]
[1755619353341,0.04030326,178.1,178.03,5.6164]
[1755619353927,0.04030326,178.1,178.04,0.25]
[1755619354133,0.04030326,178.1,178.04,5.0640245]
[1755619354432,0.04030326,178.1,178.04,0.25]
[1755619354734,0.04030326,178.1,178.08,0.25]
[1755619357627,0.04030326,178.1,177.95,388.6179]
[1755619357628,3.04,178.09,177.97,7.48983369]
[1755619357832,3.04,178.09,177.99,0.25]
[1755619359127,6.27341611,178.17,178.01,5.617]
[1755619359431,6.27341611,178.17,178.03,0.25]
[1755619359432,3.9232127,178.16,178.03,0.25]
[1755619359627,3.9232127,178.15,178.06,5.6155]
[1755619359828,2.95,178.17,178.06,5.8655]
[1755619360024,2.95,178.15,178.06,5.8655]
[1755619360224,3.92717121,178.14,178.06,5.8655]
[1755619360526,0.04267721,178.12,178.06,5.8655]
[1755619361032,0.04267721,178.12,178.06,0.25]
[1755619361727,0.04267721,178.12,177.98,0.25]
[1755619362128,2.95,178.13,178.04,5.616]
[1755619362338,3.93244868,178.12,178.04,5.616]
[1755619362522,2.95,178.13,178.04,5.616]
[1755619362832,3.93514405,178.12,178.04,5.616]
[1755619363128,2.95,178.13,178.02,0.25]
[1755619363433,3.93571613,178.12,178.06,0.25]
[1755619363734,2.95,178.13,178.06,0.25]
[1755619363939,3.93911032,178.12,178.06,0.25]
[1755619364227,2.95,178.13,178.06,5.8655]
[1755619364432,3.94376507,178.12,178.06,5.8655]
[1755619364635,2.95,178.13,178.07,0.25]
[1755619364828,2.95,178.13,178.03,212.45732627]
[1755619365032,0.04193427,178.11,178.04,0.25]
[1755619366832,0.04193427,178.11,178.04,5.8662]
[1755619367027,2.99193427,178.11,178.04,0.25]
[1755619368331,2.99193427,178.11,178.03,212.45732627]
[1755619368836,2.99193427,178.11,178.03,218.07392627]
[1755619369635,2.99193427,178.11,178.03,212.45732627]
[1755619370230,0.04193427,178.11,178.04,0.25]
[1755619370739,2.99193427,178.11,178.03,360.94819487]
[1755619370940,2.99193427,178.11,178.03,354.65732627]
[1755619371341,2.99193427,178.11,178.03,142.2]
[1755619373444,2.99193427,178.11,177.97,6.5408686]
[1755619373645,2.99193427,178.11,177.97,0.25]
[1755619373831,2.95,178.11,177.97,0.25]
[1755619374239,6.27341611,178.11,177.97,0.25]
[1755619374440,2.95,178.1,177.97,0.25]
[1755619375641,2.95,178.08,177.95,377.38]
[1755619376642,9.22341611,178.08,177.95,377.38]
[1755619376838,2.95,178.07,177.93,0.25]
[1755619377441,2.95,178.07,177.94,0.25]
[1755619377837,2.95,178.07,177.98,0.25]
[1755619378646,2.95,178.11,177.98,0.25]
[1755619378840,2.95,178.11,177.98,6.5408686]
[1755619379443,2.95,178.11,177.98,12.1589686]
[1755619379645,2.95,178.11,177.98,6.5408686]
[1755619379845,10.43983369,178.11,177.97,6.2908686]
[1755619380042,2.95,178.1,177.95,6.2908686]
[1755619380243,2.95,178.09,177.95,6.2908686]
[1755619380642,2.95,178.09,177.96,0.25]
[1755619380939,2.95,178.06,177.93,6.5408686]
[1755619381345,2.95,178.06,177.94,6.2908686]
[1755619381544,2.95,178.06,177.95,0.25]
[1755619382142,2.95,178.06,177.93,6.2908686]
[1755619382744,2.95,178.06,177.94,0.25]
[1755619383145,2.95,178.06,177.94,5.8693]
[1755619383347,2.95,178.06,177.95,0.25]
[1755619384239,2.95,178.06,177.94,6.2908686]
[1755619384435,2.95,178.02,177.92,6.2908686]
[1755619384643,2.95,178.02,177.9,0.25]
[1755619385544,2.98741845,177.98,177.9,0.25]
[1755619385944,2.98741845,177.98,177.88,6.2908686]
[1755619387243,2.98741845,177.98,177.88,6.5408686]
[1755619387648,2.98741845,177.98,177.88,0.25]
[1755619389748,2.98741845,177.98,177.86,6.2908686]
[1755619390152,2.95,177.98,177.87,0.26]
[1755619390339,0.03630528,177.94,177.87,6.5508686]
[1755619390949,0.03630528,177.94,177.87,12.1723686]
[1755619391250,0.03630528,177.94,177.88,0.26]
[1755619391450,0.03630528,177.94,177.9,6.2908686]
[1755619391750,0.03630528,177.94,177.92,0.26]
[1755619391936,0.03630528,177.94,177.89,6.2908686]
[1755619392139,0.03630528,177.94,177.86,6.2908686]
[1755619392337,0.03630528,177.94,177.9,0.26]
[1755619392847,0.03630528,177.94,177.88,5.8812]
[1755619393149,0.03630528,177.94,177.88,0.26]
[1755619393348,3.02,178.02,177.93,5.6197]
[1755619393645,3.02,178.02,177.94,0.22]
[1755619394149,377.44,178.08,177.94,0.22]
[1755619394150,3.02,178.06,177.94,0.22]
[1755619394736,3.02,178.06,177.98,0.0393683]
[1755619400056,145.28,178.11,177.99,0.22]
[1755619400249,3.02,178.1,177.99,0.22]
[1755619400758,3.02,178.1,178.03,0.03656938]
[1755619402956,3.02,178.17,178.04,0.22]
[1755619403753,3.02,178.17,178.09,0.03615986]
[1755619406260,3.02,178.17,178.1,0.22]
[1755619406657,3.02,178.17,178.09,0.03615986]
[1755619412154,7.48983369,178.14,178.09,0.03615986]
[1755619412358,3.02,178.12,178.09,0.03615986]
[1755619412862,3.02,178.1,178.09,0.03615986]
[1755619413052,3.02,178.1,178.01,0.22]
[1755619413459,0.04174825,178.11,178.01,0.22]
[1755619413655,142.2,178.13,178.02,5.6169]
[1755619413958,142.2,178.13,178.03,0.26]
[1755619414365,0.03987352,178.1,178.03,0.26]
[1755619414758,0.03987352,178.1,177.94,222.08332298]
[1755619414759,0.03987352,178.1,177.97,0.26]
[1755619415264,3.02,178.11,177.97,0.26]
[1755619415467,0.03730905,178.05,177.97,0.26]
[1755619415857,0.03730905,178.05,177.98,0.26]
[1755619416258,3.02,178.11,177.98,0.26]
[1755619416666,0.03712331,178.03,177.98,0.26]
[1755619417058,0.03712331,178.03,177.99,0.26]
[1755619417257,0.03712331,178.03,177.95,0.26]
[1755619418261,0.03712331,178.03,177.95,5.879]
[1755619418462,0.03712331,178.03,177.96,0.26]
[1755619419060,0.03712331,178.03,177.95,6.2908686]
[1755619419261,3.07,178.12,177.99,0.26]
[1755619419663,3.07,178.12,178.02,0.22]
[1755619420570,3.07,178.12,178.05,0.04319059]
[1755619420860,3.07,178.12,178.05,0.26319059]
[1755619421467,3.07,178.12,178.05,0.04319059]
[1755619423060,3.07,178.1,177.97,0.22]
[1755619423268,3.11276936,178.1,177.97,0.22]
[1755619423667,3.07,178.1,177.97,0.22]
[1755619424369,0.04256201,178.05,177.97,0.26]
[1755619424971,0.04256201,178.05,177.96,7.48983369]
[1755619425166,0.04256201,178.05,177.97,6.5508686]
[1755619425367,0.04256201,178.05,177.98,0.26]
[1755619425569,0.04256201,178.05,178.0,5.6175]
[1755619425769,3.07,178.14,178.01,0.26]
[1755619426569,3.07,178.14,178.01,0.22]
[1755619427172,3.07,178.14,178.06,0.26026152]
[1755619427864,4.0471987,178.18,178.06,0.26026152]
[1755619428272,4.0471987,178.18,178.06,0.22]
[1755619428473,4.0471987,178.18,178.08,0.22]
[1755619428770,4.0471987,178.18,178.1,0.04144399]
[1755619428965,3.07,178.24,178.11,0.22]
[1755619429673,4.04688324,178.24,178.16,0.03830523]
[1755619429874,3.07,178.23,178.16,0.03830523]
[1755619440978,0.97688324,178.24,178.16,0.03830523]
[1755619441181,0.97688324,178.24,178.17,0.22]
[1755619441586,3.07,178.26,178.17,0.22]
[1755619442385,3.07,178.26,178.2,0.03648548]
[1755619442893,3.07,178.26,178.2,0.25648548]
[1755619443087,0.97671873,178.27,178.2,0.25648548]
[1755619443284,3.07,178.3,178.2,0.25648548]
[1755619443701,0.97656798,178.29,178.2,0.25648548]
[1755619444691,0.97656798,178.29,178.21,7.48983369]
[1755619444990,3.07,178.34,178.23,0.21]
[1755619445290,4.04630771,178.34,178.23,0.21]
[1755619445698,0.97630771,178.34,178.27,0.03579603]
[1755619445994,3.07,178.39,178.28,0.21]
[1755619446394,4.04603388,178.39,178.28,0.21]
[1755619446791,4.04603388,178.39,178.32,0.04014937]
[1755619449698,3.07,178.39,178.32,0.04014937]
[1755619451806,0.97595176,178.42,178.32,0.04014937]
[1755619452099,0.97595176,178.42,178.33,0.2]
[1755619452493,3.03,178.43,178.33,0.2]
[1755619453292,0.97569182,178.46,178.35,0.2]
[1755619453698,3.03,178.48,178.35,0.2]
[1755619453903,3.03,178.48,178.37,0.2]
[1755619454201,4.00554138,178.48,178.37,0.2]
[1755619454397,4.00554138,178.48,178.38,7.48983369]
[1755619454607,4.00554138,178.48,178.39,0.2]
[1755619455001,4.00554138,178.48,178.41,0.03598396]
[1755619455602,3.03,178.47,178.41,0.03598396]
[1755619458897,0.97554138,178.48,178.42,0.21]
[1755619459498,3.03,178.51,178.42,0.21]
[1755619460303,3.03,178.51,178.45,0.03993912]
[1755619460504,0.97533632,178.52,178.45,0.03993912]
[1755619461003,3.03,178.54,178.45,0.03993912]
[1755619461307,3.03,178.52,178.45,0.03993912]
[1755619461805,3.03,178.52,178.39,0.21]
[1755619462003,3.03,178.52,178.47,0.03864668]
[1755619462204,0.97521333,178.53,178.47,0.03864668]
[1755619462411,3.03,178.52,178.39,0.21]
[1755619462710,3.03,178.52,178.3,519.94]
[1755619462711,3.03,178.51,178.35,0.24]
[1755619463003,3.03,178.5,178.35,0.24]
[1755619463209,3.03,178.5,178.36,0.24]
[1755619464199,3.03,178.46,178.31,0.24]
[1755619465302,7.48983369,178.43,178.29,143.4]
[1755619465507,3.03,178.46,178.29,143.4]
[1755619465707,3.03,178.46,178.3,0.24]
[1755619465909,3.03,178.46,178.32,0.24]
[1755619466307,3.03,178.46,178.33,5.6069]
[1755619466518,3.03,178.46,178.34,0.24]
[1755619467505,0.97521333,178.53,178.3,7.48983369]
[1755619467704,3.03,178.51,178.31,0.24]
[1755619468110,3.03,178.51,178.33,5.6071]
[1755619468313,3.03,178.51,178.34,0.24]
[1755619468907,3.03,178.47,178.34,0.24]
[1755619469311,0.04176789,178.44,178.34,0.24]
[1755619469513,3.07176789,178.44,178.34,0.24]
[1755619470415,0.04176789,178.44,178.36,0.24]
[1755619471410,0.04176789,178.44,178.3,13.09783369]
[1755619471411,3.07176789,178.44,178.3,13.09783369]
[1755619471608,3.07176789,178.44,178.31,0.24]
[1755619471811,3.03,178.44,178.31,0.24]
[1755619472012,3.03,178.44,178.33,0.24]
[1755619472913,0.03969373,178.4,178.29,143.4]
[1755619473218,3.03,178.39,178.29,0.24]
[1755619473605,3.03,178.39,178.22,203.96296203]
[1755619473606,3.03,178.39,178.23,0.24]
[1755619473811,3.03,178.39,178.23,5.8501]
[1755619474013,3.03,178.39,178.23,0.24]
[1755619474414,3.03,178.39,178.27,0.24]
[1755619475216,0.03836556,178.35,178.27,0.24]
[1755619475921,0.03836556,178.35,178.22,204.20296203]
[1755619475922,3.03,178.34,178.22,204.20296203]
[1755619476118,10.51983369,178.34,178.22,204.20296203]
[1755619476422,3.03,178.33,178.22,204.20296203]
[1755619477212,3.03,178.33,178.22,209.81346203]
[1755619477417,3.03,178.33,178.22,204.20296203]
[1755619478218,3.03,178.39,178.23,0.24]
[1755619478822,3.03,178.39,178.26,0.24]
[1755619479119,3.03,178.39,178.22,211.45279572]
[1755619479316,3.05,178.35,178.22,204.21296203]
[1755619479718,3.05,178.35,178.22,209.57326203]
[1755619479926,0.04060968,178.3,178.23,0.25]
[1755619482019,0.04060968,178.3,178.27,0.25]
[1755619482225,0.04060968,178.3,178.26,5.6092]
[1755619482525,0.04060968,178.3,178.28,0.25]
[1755619482725,0.04060968,178.3,178.29,0.25]
[1755619483621,0.04060968,178.3,178.23,0.25]
[1755619487332,3.05,178.39,178.26,0.25]
[1755619487522,3.05,178.39,178.3,0.25]
[1755619487722,3.05,178.39,178.3,143.67]
[1755619488625,3.05,178.39,178.33,0.03773627]
[1755619501132,3.05,178.39,178.26,143.26]
[1755619502025,3.05,178.39,178.27,0.28]
[1755619503028,3.05,178.39,178.29,0.28]
[1755619503421,3.05,178.39,178.29,5.8882]
[1755619504237,3.05,178.39,178.29,0.28]
[1755619504831,3.05,178.39,178.26,143.26]
[1755619505137,3.05,178.38,178.25,0.28]
[1755619505336,3.05,178.38,178.22,347.02296203]
[1755619505337,3.05,178.34,178.22,347.02296203]
[1755619506126,3.08695076,178.3,178.22,203.96296203]
[1755619508432,0.03695076,178.3,178.24,7.48983369]
[1755619508635,0.03695076,178.3,178.25,0.28]
[1755619508829,0.03695076,178.3,178.24,13.78070229]
[1755619509137,0.03695076,178.3,178.28,0.29]
[1755619509332,0.03695076,178.3,178.25,0.29]
[1755619509542,3.14,178.43,178.29,0.29]
[1755619510734,3.14,178.43,178.34,0.0381168]
[1755619511443,3.14,178.41,178.34,0.0381168]
[1755619518143,142.92,178.44,178.34,0.0381168]
[1755619518337,3.14,178.43,178.34,0.3281168]
[1755619520543,376.7,178.47,178.34,0.3281168]
[1755619520741,3.14,178.46,178.34,0.3281168]
[1755619520946,3.14,178.46,178.34,0.29]
[1755619521147,3.14,178.46,178.3,0.29]
[1755619521148,9.41341611,178.46,178.3,0.29]
[1755619521351,3.14,178.43,178.38,0.04291096]
[1755619522145,146.24,178.43,178.38,0.04291096]
[1755619522345,3.17723313,178.42,178.3,0.29]
[1755619522547,3.14,178.39,178.26,0.33]
[1755619523950,3.14,178.35,178.22,347.37296203]
[1755619524144,146.3,178.35,178.22,0.33]
[1755619524343,3.14,178.34,178.22,0.33]
[1755619525549,143.16,178.35,178.3,1.87251]
[1755619525950,3.14,178.33,178.3,1.87251]
[1755619526547,143.16,178.35,178.3,1.87251]
[1755619526753,3.14,178.32,178.3,1.87251]
[1755619527252,143.16,178.35,178.3,1.87251]
[1755619527253,3.14,178.31,178.3,1.87251]
[1755619528153,143.16,178.35,178.3,1.87251]
[1755619528548,3.14,178.31,178.3,1.87251]
[1755619529252,3.14,178.31,178.22,0.33]
[1755619530154,3.14,178.31,178.18,2.21]
[1755619530753,3.14,178.27,178.14,2.21]
[1755619531651,0.04313256,178.22,178.14,2.21]
[1755619531858,0.04313256,178.22,178.1,384.34983369]
[1755619531859,3.18313256,178.22,178.1,379.07]
[1755619532251,3.14,178.22,178.1,379.07]
[1755619532654,0.0407005,178.18,178.1,379.07]
[1755619533551,0.0407005,178.18,178.1,376.86]
[1755619533748,0.0407005,178.18,178.12,6.2908686]
[1755619533956,0.0407005,178.18,178.11,2.21]
[1755619536556,0.0407005,178.18,178.14,7.48983369]
[1755619536757,0.0407005,178.18,178.16,2.21]
[1755619536957,3.14,178.26,178.17,2.21]
[1755619537350,3.14,178.3,178.18,7.48983369]
[1755619537548,3.14,178.3,178.19,2.17]
[1755619538058,145.99941348,178.31,178.19,2.17]
[1755619538364,145.99941348,178.31,178.23,2.21170323]
[1755619538956,13.7632498,178.44,178.23,2.21170323]
[1755619539149,2.95,178.43,178.27,2.16]
[1755619539758,2.95,178.43,178.33,0.04133652]
[1755619540153,7.48983369,178.37,178.2,2.16]
[1755619540356,7.48983369,178.33,178.2,2.16]
[1755619540661,2.95,178.32,178.2,2.16]
[1755619541361,2.95,178.32,178.21,2.2]
[1755619541556,0.03735804,178.28,178.21,2.2]
[1755619542660,0.03735804,178.28,178.15,156.66233369]
[1755619542861,0.03735804,178.28,178.16,2.2]
[1755619543058,2.95,178.29,178.16,2.2]
[1755619543359,0.03586268,178.24,178.2,2.23781141]
[1755619544355,0.03586268,178.24,178.22,2.2]
[1755619544560,0.03586268,178.24,178.2,0.03781141]
[1755619546654,2.98586268,178.24,178.2,0.03781141]
[1755619546857,2.95,178.23,178.2,0.03781141]
[1755619547368,0.03586268,178.24,178.2,0.03781141]
[1755619548053,2.95,178.23,178.12,2.21]
[1755619548255,10.43983369,178.23,178.12,2.21]
[1755619549264,0.04084219,178.19,178.12,2.21]
[1755619550258,2.95,178.18,178.08,143.52]
[1755619550861,2.95,178.18,178.07,2.25]
[1755619551063,2.95,178.14,178.03,2.25]
[1755619551868,0.03638348,178.1,178.03,2.25]
[1755619552965,0.03638348,178.1,178.0,520.42]
[1755619553369,2.95,178.09,177.99,2.25]
[1755619553869,2.95,178.06,177.94,2.25]
[1755619554068,2.99086083,178.06,177.94,2.25]
[1755619554470,2.95,178.06,177.94,2.25]
[1755619554865,0.04124226,178.02,177.94,2.25]
[1755619561680,2.99124226,178.02,177.9,379.33]
[1755619562077,2.95,178.02,177.9,379.33]
[1755619562377,0.0407695,177.98,177.91,2.25]
[1755619564482,0.0407695,177.98,177.95,2.25]
[1755619564680,0.0407695,177.98,177.94,2.25]
[1755619565081,0.0407695,177.98,177.95,2.25]
[1755619565481,0.0407695,177.98,177.93,7.48983369]
[1755619565880,0.0407695,177.98,177.95,2.25]
[1755619566082,0.0407695,177.98,177.96,2.25]
[1755619566377,0.0407695,177.98,177.94,2.25]
[1755619566578,0.0407695,177.98,177.96,2.25]
[1755619566792,2.95,178.07,177.94,2.25]
[1755619566992,2.95,178.11,177.98,7.8681]
[1755619567283,2.95,178.11,177.98,146.17]
[1755619567679,2.95,178.11,178.01,7.48983369]
[1755619568077,0.03713722,178.06,178.02,2.25]
[1755619568278,2.95,178.15,178.02,2.25]
[1755619568479,2.95,178.15,178.05,9.73983369]
[1755619568881,377.08,178.19,178.06,2.24]
[1755619569784,3.16,178.2,178.11,0.03865724]
[1755619571981,3.16,178.18,178.11,0.03865724]
[1755619572387,3.16,178.18,178.02,2.24]
[1755619572388,3.16,178.18,178.04,2.24]
[1755619572784,3.16,178.22,178.13,0.03707254]
[1755619572986,3.16,178.22,178.05,7.48983369]
[1755619573187,3.16,178.22,178.06,2.24]
[1755619573386,3.16,178.22,178.16,0.04151771]
[1755619573581,3.16,178.22,178.06,2.24]
[1755619573788,0.0391067,178.16,178.06,2.24]
[1755619575580,0.0391067,178.16,178.1,2.28]
[1755619576079,3.16,178.22,178.1,2.28]
[1755619576284,0.03570528,178.15,178.1,2.28]
[1755619576480,0.03570528,178.15,178.12,2.28]
[1755619576686,0.03570528,178.15,178.09,13.10423369]
[1755619576687,0.03570528,178.15,178.14,2.28]
[1755619576882,3.16,178.22,178.14,2.28]
[1755619579087,3.16,178.22,178.13,7.52554225]
[1755619580289,3.16,178.22,178.14,2.28]
[1755619582989,291.5182248,178.26,178.14,2.28]
[1755619584089,3.16,178.25,178.14,2.28]
[1755619584289,3.16,178.25,178.18,0.04188296]
[1755619590005,7.48983369,178.23,178.1,2.28]
[1755619590305,3.16,178.22,178.1,2.28]
[1755619591504,0.03598709,178.18,178.1,2.28]
[1755619591706,0.03598709,178.18,178.05,7.48983369]
[1755619591906,3.16,178.17,178.06,2.33]
[1755619592400,0.04216262,178.13,178.06,2.33]
[1755619592602,0.04216262,178.13,178.1,0.03866952]
[1755619592803,0.04216262,178.13,178.1,2.36866952]
[1755619593603,0.04216262,178.13,178.1,0.03866952]
[1755619594402,0.04216262,178.13,178.1,2.36866952]
[1755619595105,0.04216262,178.13,178.1,0.03866952]
[1755619595505,0.04216262,178.13,178.1,2.36866952]